Cogmind - Beta 10.2 @@@ ROGUE MODE // 2022.02.26 @ 18:52:09 Player: Fleshy Vegetable Bird Result: Destroyed by D-53 Grenadier with Mini Grenade Launcher Performance ------------- Evolutions (0) 0 Regions Visited (2) 400 Robots Destroyed (17) 85 Value Destroyed (221) 221 Prototype IDs (0) 0 Alien Tech Used (0) 0 Bonus (0) 0 TOTAL SCORE: 706 Bonus ------- None Cogmind --------- Core Integrity 0/250 Matter 275/300 Energy 100/100 System Corruption 0% Temperature Cool (0) Movement Rolling (90) Ox1 Location -10/Mines Parts ------- > --- POWER (1) -------- (None) > --- PROPULSION (2) --- Wheel > --- UTILITY (2) ------ Small Storage Unit Medium Storage Unit > --- WEAPON (2) ------- (None) > --- INVENTORY (10) --- Light Treads Improved Terrain Scanner Seismic Analyzer Grenade Launcher Datajack Peak State ------------ > --- POWER ------------ Light Ion Engine > --- PROPULSION ------- Wheel Wheel > --- UTILITY ---------- Small Storage Unit Small Storage Unit > --- WEAPON ----------- EM Pulse Gun Assault Rifle > --- INVENTORY -------- Ion Engine Light Treads Wheel Improved Terrain Scanner Seismic Analyzer Mining Laser [Rating: 7] Favorites ----------- Power Ion Engine Engine Ion Engine Propulsion Wheel Treads Light Treads Wheel Wheel Utility Small Storage Unit Storage Small Storage Unit Weapon EM Pulse Gun Energy Gun EM Pulse Gun Ballistic Gun Assault Rifle Launcher Grenade Launcher Special Weapon Mining Laser Build | -11 -10 -10 ------- Run | Scr Mat Min Slots Evolved . | . . . Power . | . . . Propulsion . | . . . Utility . | . . . Weapon . | . . . Parts Attached 26 | 7 13 6 Power 2 | 1 1 . Engine 2 | 1 1 . Core . | . . . Reactor . | . . . Propulsion 11 | 3 6 2 Treads 2 | . 2 . Leg . | . . . Wheel 9 | 3 4 2 Hover . | . . . Flight . | . . . Utility 3 | 2 1 . Device . | . . . Storage 3 | 2 1 . Processor . | . . . Hackware . | . . . Protection . | . . . Artifact . | . . . Weapon 10 | 1 5 4 Energy Gun 1 | 1 . . Energy Cannon . | . . . Ballistic Gun 4 | . 2 2 Ballistic Cannon . | . . . Launcher 2 | . 1 1 Special Weapon 3 | . 2 1 Impact Weapon . | . . . Slashing Weapon . | . . . Piercing Weapon . | . . . Special Melee Weapon . | . . . Unidentified Prototypes . | . . . Parts Lost 7 | . . 7 Power 1 | . . 1 Propulsion 3 | . . 3 Utility . | . . . Weapon 3 | . . 3 Highest Loss Streak 4 | . . 4 Average Slot Usage (%) 98 | . 99 98 Engine 14 | . 14 14 Wheel 26 | . 26 26 Storage 28 | . 28 28 Energy Gun 12 | . 14 2 Ballistic Gun 4 | . 3 7 Launcher 1 | . . 6 Special Weapon 9 | . 8 11 Naked Turns . | . . . Heaviest Build 21 | 13 20 21 Greatest Support 26 | 26 20 20 Greatest Overweight (x) 1 | . 1 1 Average Overweight (x) . | . . . Largest Inventory Capacity 10 | 8 10 10 Average Capacity 8 | 6 8 10 Most Carried 8 | 6 8 8 Average Carried 6 | 2 7 5 Final Capacity 10 | 8 10 10 Final Carried 8 | 6 8 5 Class Distribution -------------------- 100% | Mutant Dominant Class ---------------- Mutant | -10/Materials Mutant | -10/Mines Resources | -11 -10 -10 ----------- Run | Scr Mat Min Matter Collected 502 | 259 116 127 Remotely . | . . . Salvage Created 533 | 142 288 103 Parts 39 | 10 26 3 Haulers Intercepted 2 | . 2 . Recyclers Shooed . | . . . Parts Field Recycled . | . . . Retrieved Matter . | . . . Parts Self-Destructed . | . . . Prevented . | . . . Kills | -11 -10 -10 ------- Run | Scr Mat Min Combat Hostiles Destroyed 11 | . 9 2 Guns 11 | . 9 2 Classes Destroyed 6 | 2 3 1 Tunneler 2 | 2 . . Hauler 2 | . 2 . Recycler 1 | 1 . . Operator 1 | . 1 . Swarmer 9 | . 9 . Grunt 2 | . . 2 Best Kill Streak 3 | 3 3 1 Combat Bots Only 3 | . 3 1 Max Kills in Single Turn 1 | 1 1 1 Gunslinging . | . . . Exploded . | . . . Melee . | . . . Uniques/NPCs Destroyed . | . . . Combat | -11 -10 -10 -------- Run | Scr Mat Min Damage Taken 777 | . 232 545 Core 262 | . 82 180 Absorbed by Shields . | . . . Core Remaining (%) 100 | 100 . . Volleys Fired 75 | 16 43 16 Largest 2 | 1 2 2 Hottest 120 | 40 100 120 Shots Fired 103 | 16 61 26 Gun 94 | 16 53 25 Cannon . | . . . Launcher . | . . . Special 9 | . 8 1 Kinetic 34 | . 18 16 Thermal 9 | . 8 1 Explosive . | . . . Electromagnetic 60 | 16 35 9 Robot Hit Streak 8 | 2 6 8 Robot Miss Streak 3 | 3 3 1 Penetration Max . | . . . Secondary Targets 1 | . . 1 Max Gunslinging Chain 1 | . . 1 Shots Hit Robots 61 | 7 32 22 Core Hits 21 | 4 13 4 Critical Hits . | . . . Critical Kills . | . . . Critical Parts Destroyed . | . . . Melee Attacks . | . . . Impact . | . . . Slashing . | . . . Piercing . | . . . Sneak Attacks . | . . . Combat Hostiles . | . . . Follow-up Attacks . | . . . Damage Inflicted 914 | 175 382 357 Guns 766 | 134 354 278 Cannons . | . . . Explosions 124 | 41 28 55 Melee . | . . . Ramming . | . . . Kinetic 264 | . 83 181 Thermal 148 | 41 28 79 Explosive . | . . . Electromagnetic 502 | 134 271 97 Impact . | . . . Slashing . | . . . Piercing . | . . . Highest Corruption . | . . . Average Corruption . | . . . Corruption Purged . | . . . Overload Shots . | . . . Overflow Damage 31 | . . 31 Projectiles . | . . . Explosions 31 | . . 31 Melee . | . . . Knockbacks . | . . . Impact . | . . . Kinetic . | . . . Secondary . | . . . Self-Inflicted Damage 30 | . . 30 Shots 1 | . . 1 Rammed . | . . . Targets Rammed . | . . . Kicked . | . . . Crushed . | . . . Highest Temperature 102 | . 60 102 Average Temperature 36 | . 25 50 Received Heat Transfer 105 | . . 105 Siege Activations . | . . . Robots Corrupted 1 | . 1 . Combat Hostiles . | . . . Parts Fried 1 | . 1 . Impact Corruptions . | . . . Robots Melted . | . . . Combat Hostiles . | . . . Parts Melted . | . . . Heat Transferred 200 | 50 50 100 Parts Sabotaged . | . . . Parts Stolen . | . . . Parts Stripped . | . . . Power Chain Reactions 3 | 1 1 1 Missiles Intercepted . | . . . Alert | -11 -10 -10 ------- Run | Scr Mat Min Peak Influence 215 | 15 215 64 Initial 44 | . 9 44 Average 91 | 4 108 61 Maximum Alert Level 1 | . 1 . Low Security (%) 79 | 100 72 100 Level 1 20 | . 27 . Level 2 . | . . . Level 3 . | . . . Level 4 . | . . . Level 5 . | . . . High Security . | . . . Max Security . | . . . Squads Dispatched 2 | . 2 . Investigation 2 | . 2 . Extermination . | . . . Reinforcement . | . . . Assault . | . . . Garrison . | . . . Intercept . | . . . Construction Impeded . | . . . Haulers Reinforced . | . . . Stealth | -11 -10 -10 --------- Run | Scr Mat Min Distress Signals . | . . . Communications Jammed . | . . . Distress Signals . | . . . Times Spotted 17 | . 13 4 Peak Tracking Total 4 | . 4 2 Tactical Retreats . | . . . Traps | -11 -10 -10 ------- Run | Scr Mat Min Traps Triggered 1 | . 1 . Indirectly . | . . . Trap Hack Attempts . | . . . Triggered . | . . . Disarmed . | . . . Reprogrammed . | . . . Reused . | . . . Traps Extracted . | . . . Installed . | . . . Triggered . | . . . Machines | -11 -10 -10 ---------- Run | Scr Mat Min Machines Disabled 1 | . 1 . Max in Single Turn 1 | . 1 . Machines Sabotaged . | . . . Garrisons Compromised . | . . . Overloaded Fab Kills . | . . . Fab Network Shutdowns . | . . . Hacking | -11 -10 -10 --------- Run | Scr Mat Min Machines Accessed 7 | . 7 . Terminals 6 | . 6 . Fabricators . | . . . Repair Stations 1 | . 1 . Recycling Units . | . . . Scanalyzers . | . . . Garrison Access . | . . . Total Hacks 27 | . 27 . Successful 15 | . 15 . Failed 11 | . 11 . Catastrophic 3 | . 3 . Database Lockouts 1 | . 1 . Manual 24 | . 24 . Terminals 24 | . 24 . Fabricators . | . . . Repair Stations 3 | . 3 . Recycling Units . | . . . Scanalyzers . | . . . Garrison Access . | . . . Terminal Hacks 3 | . 3 . Part Schematic 1 | . 1 . Terminal Index 1 | . 1 . Recall Investigation 1 | . 1 . Fabricator Hacks . | . . . Repair Station Hacks 2 | . 2 . Scan Component 1 | . 1 . Repair 1 | . 1 . Recycling Unit Hacks . | . . . Scanalyzer . | . . . Garrison Access Hacks . | . . . Unauthorized Hacks 10 | . 10 . Terminals 10 | . 10 . Track 4 | . 4 . Botnet 5 | . 5 . Operators 1 | . 1 . Fabricators . | . . . Repair Stations . | . . . Recycling Units . | . . . Scanalyzers . | . . . Garrison Access . | . . . Data Cores Recovered 1 | . 1 . Used 1 | . 1 . Hacking Detections 7 | . 7 . Full Trace Events 1 | . 1 . Feedback Events . | . . . Feedback Blocked . | . . . Robot Schematics Acquired . | . . . Robots Built . | . . . Matter . | . . . Time . | . . . Total Robot Build Rating . | . . . Part Schematics Acquired 1 | . 1 . Parts Built . | . . . Matter . | . . . Time . | . . . Total Part Build Rating . | . . . Parts Repaired 1 | . 1 . Time 26 | . 26 . Parts Recycled . | . . . Recycled Matter . | . . . Retrieved Matter . | . . . Retrieved Components . | . . . Parts Scanalyzed . | . . . Part Schematics Acquired . | . . . Parts Damaged . | . . . Bothacking | -11 -10 -10 ------------ Run | Scr Mat Min Used RIF Installer . | . . . Robots Hacked . | . . . Non-combat . | . . . Combat . | . . . Robot Hacks Applied . | . . . Relay Couplers Released . | . . . Robots Rewired . | . . . Allies Hacked . | . . . Hacks Repelled . | . . . Allies | -11 -10 -10 -------- Run | Scr Mat Min Total Allies . | . . . Largest Group . | . . . Highest-Rated Group . | . . . Highest-Rated Ally . | . . . Total Orders . | . . . Ally Attacks . | . . . Total Damage . | . . . Kills . | . . . Allies Corrupted . | . . . Allies Melted . | . . . Intel | -11 -10 -10 ------- Run | Scr Mat Min Robot Analysis Total . | . . . Derelict Logs Recovered . | . . . Drone Launches . | . . . Drone Recoveries . | . . . Exploration | -11 -10 -10 ------------- Run | Scr Mat Min Turns Passed 965 | 95 719 151 Spaces Moved 529 | 42 378 109 Core 6 | 6 . . Treads 6 | . 6 . Legs . | . . . Wheels 517 | 36 372 109 Hover . | . . . Flight . | . . . Fastest Speed 50 | 50 80 80 Average Speed 82 | 83 81 87 Slowest Speed 160 | 100 160 90 Overloaded Moves . | . . . Propulsion Burnouts . | . . . Robots Hopped . | . . . Cave-ins Triggered . | . . . Exploration Rate (%) 32 | 5 63 30 Regions Visited 2 Branch Regions 1 Pre-discovered Areas . | . . . Known Exits Taken . | . . . Unknown Exits Taken 2 | 1 1 . Scrap Searched . | . . . Spaces Dug 8 | . 8 . Terrain Destroyed 20 | 4 10 6 Melee . | . . . Projectile 8 | . 8 . AOE 12 | 4 2 6 Terrain Rammed . | . . . Walls Destroyed . | . . . Machines Disabled . | . . . Actions | -11 -10 -10 --------- Run | Scr Mat Min Total 928 | 85 708 135 Wait 270 | 7 259 4 Move 527 | 41 377 109 Hop . | . . . Pick Up 23 | 13 10 . Fast Attach . | . . . Attach 10 | 6 1 3 Detach . | . . . Swap 16 | 1 12 3 Drop 7 | 1 6 . Fire 75 | 16 43 16 Melee . | . . . Ram . | . . . Kick . | . . . Crush . | . . . Escape Stasis . | . . . Rewire . | . . . Trap . | . . . Miscellaneous . | . . . Route ------- -11/Scrapyard -10/Materials (discovered 3 exits: [*Mat x2] / [*Min]) -10/Mines (discovered 1 exit: [*Mat]) History --------- Turn | Location | Event 13 | -11/Scrapyard | Discovered new exit (range 15) 96 | -11/Scrapyard | Entered Materials 187 | -10/Materials | Repaired Wheel 230 | -10/Materials | Discovered new exit (range 9) 296 | -10/Materials | Central database locked down 315 | -10/Materials | Build established: Mutant 419 | -10/Materials | Discovered new exit (range 5) 688 | -10/Materials | Discovered new exit (range 16) 815 | -10/Materials | Entered Mines 872 | -10/Mines | Lost 3 parts (2n1w) 906 | -10/Mines | Discovered new exit (range 8) 935 | -10/Mines | Assembled infested the area 940 | -10/Mines | Assisted by a Guerilla fighting off Assembled 961 | -10/Mines | Core integrity fell below 50% 965 | -10/Mines | Core integrity fell below 20% 966 | -10/Mines | Destroyed by D-53 Grenadier with Mini Grenade Launcher Last Messages --------------- 00922_ Destroyed Mining Laser. 00931_ K-01 Serf cleans the Core Extractor. 00935_ ALERT: Infestation in the mines, dispatching Demolisher response squad. 00940_ A derelict emerges from the shadows: "You need to get out of here! I've been tracking a group of Assembled to figure out where they're coming from, and they're closing on this area, come on!" 00945_ C-30 ARC bursts open, deploying its payload. 00945_ D-53 Grenadier unfolds itself. 00946_ QP-ANW(h): "I'll hold them off! Go on ahead or try to find another way!" 00948_ Wheel destroyed. 00948_ Core Extractor disabled. 00948_ QP-ANW(h) destroyed. 00949_ Acquired 67 matter. 00962_ Assault Rifle destroyed. 00962_ Ion Engine destroyed. 00962_ T-07 Excavator destroyed. 00964_ Mining Laser destroyed. 00965_ The unstable cave ceiling collapses. Map ----- +----------------------------------------------------+ | | | | | | | | | | | | | | | | | | | | | | | ????????????????????????????????????????????? | | ????????????????####????????????????????????? | | ???????????????## ##??????######??????????? | | ???????????????# #?????## #??????????? | | ??????????????## #???### #??????? ## | | ??????????????# ##?## ###### "# | | ??????????????# < #?# ? | | ??????????????# #??# ]%% ?????? | | ???????????????# #??# ?????????? | | ???????????????# #??## #??????????? | | ???????????????# ###?# ##??????????? | | ???????????????## ### ##???????????? | | ???????????????# ## #????????????? | | ???????????????# ## #????????????? | | ???????????????# @ # #????????????? | | ???????????????# d #????????????? | | ???????????????## # ##????????????? | | ????????????????# d ##?????????????? | | ????????????????# #??????????????? | | ????????????????## ##??????????????? | | ?????????????????# " ##???????????????? | | ?????????????????#### """ #????????????????? | | ???????????????????## """ ##????????????????? | | ?????????????????### #?????????????????? | | ????????????????## # #?????????????????? | | ????????????????# ## #?????????????????? | | ????????????????# ### #?????????????????? | | ????????????????# ##?# #?????????????????? | | ????????????????# ##??# #?????????????????? | | ????????????????# #???# #?????????????????? | | ?????????????#### ##### ??????????????????? | | ?????????????# #? ??????????????????? | | ?????????????# ## #? ??????????????????? | | ?????????????# ##### #?????????????????????? | | ?????????????# #???# #?????????????????????? | | ?????????????# #??## ######????????????????? | | ?????????????# #??# #????????????????? | | ?????????????# #??# #????????????????? | | ?????????????# #??# """ #????????????????? | +----------------------------------------------------+ Best States ------------- Heat Dissipation 25 Energy Generation 10 Energy Capacity 250 Matter Stores 300 Matter Capacity 300 Sight Range 16 Terrain Scan Density 10 Evasion (%) 50 Recoil Reduction 1 Item Schematics ----------------- Wheel | -10/Materials | Hacked Robot Schematics ------------------ None Fabricated ------------ Nothing Alien Tech Used ----------------- None Achievements -------------- None Challenges ------------ None Game ------ Seed WeldingAlloyThrusters Manual? 0 Play Time 00:16:01 Cumulative 308.9 hours Start 2022.02.26 @ 18:17:41 End 2022.02.26 @ 18:52:09 Sessions 1 Manual Loads 0 Difficulty Rogue Special Mode None Game No. 344 Rogue 344 Adventurer 0 Explorer 0 Win Type - Total 6 Types 3/1/1/1/0/0/0/0/0 Lore% 67 Gallery% 85 Achievement% 66 Wizard Run 0 Options --------- ASCII 0 Keyboard 0 Movement Numpad Keybinds 0 Fullscreen 1 Font 16/Terminus Map View 75x55 Tactical HUD 1 Map Filters NONE Filters NONE Steam 1 RUN: c328ae51-50c2-429f-83e7-05425f648018